fUSD/lending_fUSD_20241021
["ID","MTS","AMOUNT","RATE_DAILY","PERIOD"]
[340602421,1729521015320,-696.44530939,0.000109,2]
[340602442,1729521031855,-156.39,0.00010959,2]
[340602444,1729521031865,-104.43678373,0.00010973,2]
[340602456,1729521031974,-395.56321627,0.00010973,2]
[340602458,1729521031984,-500.0,0.00010973,2]
[340602460,1729521031994,-154.67394876,0.0001099,2]
[340602461,1729521032003,-150.0,0.00010999,2]
[340602462,1729521032013,-500.0,0.00010999,2]
[340602463,1729521032023,-261.62427609,0.00010999,2]
[340602465,1729521032033,-3778.13855904,0.00011,2]
[340602481,1729521038232,-839.50391138,0.00011,2]
[340602484,1729521038261,-6165.89395597,0.00011,2]
[340602487,1729521038966,-614154.76511243,0.00011,2]
[340602582,1729521039979,-343.2318375,0.00011,2]
[340602583,1729521039992,-67592.31088202,0.00011,2]
[340602584,1729521040006,-1291016.05741279,0.00011,2]
[340602585,1729521040015,-140342.24744425,0.00011,2]
[340602586,1729521040026,-197884.72207,0.000138,3]
[340602587,1729521040036,-239326.570702,0.000139,3]
[340602588,1729521040046,-2184.05,0.000139,2]
[340602589,1729521040057,-150.29720321,0.00016438,2]
[340602590,1729521040067,-161.86177418,0.000179,2]
[340602592,1729521040077,-809.0,0.00019048,2]
[340602594,1729521040087,-150.0,0.00019048,2]
[340602596,1729521040096,-4202.251,0.00019048,2]
[340602598,1729521040106,-812.0,0.00019048,2]
[340602600,1729521040115,-1122.807,0.00019048,2]
[340602602,1729521040125,-151.47,0.0002,2]
[340602604,1729521040135,-151.47,0.0002,2]
[340602606,1729521040144,-151.47,0.0002,2]
[340602608,1729521040154,-4013.71542581,0.00021,2]
[340602610,1729521040164,-4617.74344778,0.00021,7]
[340602611,1729521040173,-679.69,0.0002137,2]
[340602613,1729521040183,-418.32,0.00021593,2]
[340602615,1729521040192,-499.99,0.00021593,2]
[340602618,1729521040201,-2520.92,0.00023231,2]
[340602620,1729521040211,-250.0,0.00023285,2]
[340602622,1729521040220,-250.0,0.00023285,2]
[340602624,1729521040230,-23890.0,0.00023287,2]
[340602626,1729521040239,-628.98,0.00023316,2]
[340602628,1729521040249,-250.0,0.00023322,2]
[340602630,1729521040258,-556.42,0.0002333,2]
[340602632,1729521040267,-210.05,0.00023355,2]
[340602634,1729521040277,-151.81,0.00023455,2]
[340602636,1729521040286,-200.0,0.00023536,2]
[340602638,1729521040296,-800.0,0.00023536,2]
[340602640,1729521040305,-178.52,0.00023613,2]
[340602642,1729521040316,-679.69,0.00023634,2]
[340602644,1729521040325,-200.0,0.00023725,2]
[340602646,1729521040334,-2184.05,0.000238,14]
[340602648,1729521040344,-54664.03847735,0.0002388,2]
[340602650,1729521040353,-2110.0,0.00023999,2]
[340602652,1729521040363,-1800.0,0.000242,8]
[340602654,1729521040373,-2300.0,0.000243,8]
[340602656,1729521040383,-400.0,0.000244,8]
[340602658,1729521040392,-167.0,0.00024412,2]
[340602660,1729521040401,-2110.0,0.00024499,2]
[340602662,1729521040411,-400.0,0.000245,8]
[340602664,1729521040422,-1052.78256006,0.0002458,2]
[340602666,1729521040432,-1112.9292633,0.0002458,2]
[340602668,1729521040441,-400.0,0.000246,8]
[340602670,1729521040451,-150.34,0.00024639,2]
[340602672,1729521040463,-1000.0,0.00024658,2]
[340602675,1729521040473,-3493.32848181,0.0002469,2]
[340602677,1729521040483,-315.56,0.000247,2]
[340602679,1729521040493,-861.85551993,0.000247,2]
[340602681,1729521040503,-1007.66,0.000247,2]
[340602683,1729521040513,-400.0,0.000247,9]
[340602685,1729521040525,-3039.253,0.0002471,2]
[340602687,1729521040534,-861.85551991,0.00024722,2]
[340602689,1729521040548,-861.85551991,0.00024744,2]
[340602691,1729521040560,-861.85551991,0.00024767,2]
[340602693,1729521040570,-861.85551991,0.00024789,2]
[340602696,1729521040580,-1000.0,0.0002479,10]
[340602697,1729521040589,-1640.125,0.00024794,8]
[340602700,1729521040599,-150.0,0.00024794,2]
[340602701,1729521040608,-3493.32848181,0.00024795,2]
[340602704,1729521040618,-150.0,0.00024797,2]
[340602706,1729521040627,-177.27427712,0.00024799,14]
[340602708,1729521040637,-150.0,0.00024799,2]
[340602710,1729521040647,-84671.29512497,0.000248,2]
[340602742,1729521040946,-1043.0,0.000248,9]
[340602746,1729521040976,-151.47,0.0002481,2]
[340602748,1729521040987,-861.85551991,0.00024811,2]
[340602750,1729521040997,-177.6449,0.00024818,2]
[340602752,1729521041007,-159.8569,0.00024818,2]
[340602754,1729521041016,-500.0,0.00024819,3]
[340602756,1729521041026,-500.0,0.00024819,3]
[340602758,1729521041036,-500.0,0.00024819,3]
[340602761,1729521041046,-500.0,0.00024819,3]
[340602763,1729521041056,-500.0,0.0002482,2]
[340602765,1729521041067,-245000.0,0.0002482,2]
[340602767,1729521041077,-100000.0,0.0002482,2]
[340602769,1729521041086,-3994.5518,0.0002482,2]
[340602771,1729521041097,-500.0,0.0002483,3]
[340602773,1729521041106,-861.85551991,0.00024833,2]
[340602775,1729521041115,-861.85551991,0.00024856,2]
[340602777,1729521041125,-500.0,0.00024856,2]
[340602779,1729521041134,-150.0,0.00024857,2]
[340602781,1729521041144,-150.0,0.00024858,2]
[340602783,1729521041158,-500.0,0.00024865,2]
[340602786,1729521041169,-150.0,0.00024869,2]
[340602788,1729521041180,-500.0,0.00024873,2]
[340602790,1729521041190,-500.0,0.00024874,2]
[340602792,1729521041200,-919.73,0.00024877,30]
[340602794,1729521041209,-861.85551991,0.00024878,2]
[340602796,1729521041219,-500.0,0.00024882,2]
[340602798,1729521041229,-176.99990387,0.00024887,2]
[340602800,1729521041241,-500.0,0.00024891,2]
[340602802,1729521041251,-150.0,0.00024895,2]
[340602804,1729521041260,-3000.0,0.000249,2]
[340602806,1729521041270,-500.0,0.000249,2]
[340602809,1729521041279,-204914.69118805,0.000249,2]
[340602810,1729521041289,-176.99990386,0.000249,2]
[340602813,1729521041300,-5800.0,0.000249,2]
[340602814,1729521041311,-861.85551991,0.000249,2]
[340602817,1729521041321,-161.86177418,0.000249,2]
[340602819,1729521041330,-153.4555756,0.000249,7]
[340602821,1729521041339,-153.4555756,0.000249,7]
[340602823,1729521041349,-153.4555756,0.000249,7]
[340602825,1729521041358,-153.4555756,0.000249,7]
[340602827,1729521041368,-153.4555756,0.000249,7]
[340602829,1729521041377,-153.4555756,0.000249,7]
[340602831,1729521041387,-153.4555756,0.000249,7]
[340602833,1729521041397,-153.4555756,0.000249,7]
[340602835,1729521041407,-153.4555756,0.000249,7]
[340602837,1729521041417,-153.4555756,0.000249,7]
[340602839,1729521041426,-153.4555756,0.000249,7]
[340602841,1729521041436,-153.4555756,0.000249,7]
[340602843,1729521041447,-153.95,0.000249,7]
[340602845,1729521041457,-157.50703812,0.000249,7]
[340602847,1729521041467,-157.50703812,0.000249,7]
[340602849,1729521041477,-157.50703812,0.000249,7]
[340602851,1729521041486,-157.50703812,0.000249,7]
[340602853,1729521041496,-157.50703812,0.000249,7]
[340602855,1729521041505,-157.50703812,0.000249,7]
[340602857,1729521041519,-157.50703812,0.000249,7]
[340602859,1729521041528,-157.50703812,0.000249,7]
[340602861,1729521041538,-157.50703812,0.000249,7]
[340602863,1729521041547,-157.50703812,0.000249,7]
[340602865,1729521041558,-157.50703812,0.000249,7]
[340602867,1729521041570,-157.50703812,0.000249,7]
[340602869,1729521041579,-157.50703812,0.000249,7]
[340602871,1729521041593,-157.50703812,0.000249,7]
[340602873,1729521041602,-157.50703812,0.000249,7]
[340602875,1729521041612,-157.50703812,0.000249,7]
[340602877,1729521041622,-157.50703812,0.000249,7]
[340602879,1729521041631,-157.50703812,0.000249,7]
[340602881,1729521041641,-158.0,0.000249,7]
[340602883,1729521041651,-309.88613065,0.000249,7]
[340602885,1729521041660,-309.88613065,0.000249,7]
[340602887,1729521041671,-309.88613065,0.000249,7]
[340602889,1729521041680,-309.88613065,0.000249,7]
[340602891,1729521041690,-309.88613065,0.000249,7]
[340602893,1729521041699,-309.88613065,0.000249,7]
[340602895,1729521041709,-309.88613065,0.000249,7]
[340602898,1729521041719,-309.88613065,0.000249,7]
[340602900,1729521041728,-309.88613065,0.000249,7]
[340602902,1729521041738,-309.88613065,0.000249,7]
[340602904,1729521041747,-309.88613065,0.000249,7]
[340602906,1729521041757,-309.88613065,0.000249,7]
[340602908,1729521041766,-309.88613065,0.000249,7]
[340602910,1729521041776,-309.88613065,0.000249,7]
[340602912,1729521041786,-309.88613065,0.000249,7]
[340602914,1729521041795,-309.88613065,0.000249,7]
[340602916,1729521041805,-309.88613065,0.000249,7]
[340602918,1729521041816,-309.88613065,0.000249,7]
[340602920,1729521041827,-309.88613065,0.000249,7]
[340602922,1729521041836,-310.38,0.000249,7]
[340602924,1729521041845,-464.84169597,0.000249,7]
[340602926,1729521041855,-464.84169597,0.000249,7]
[340602928,1729521041865,-464.84169597,0.000249,7]
[340602931,1729521041874,-464.84169597,0.000249,7]
[340602933,1729521041887,-464.84169597,0.000249,7]
[340602935,1729521041896,-464.84169597,0.000249,7]
[340602937,1729521041905,-464.84169597,0.000249,7]
[340602939,1729521041915,-464.84169597,0.000249,7]
[340602941,1729521041924,-464.84169597,0.000249,7]
[340602943,1729521041934,-464.84169597,0.000249,7]
[340602945,1729521041944,-464.84169597,0.000249,7]
[340602947,1729521041953,-464.84169597,0.000249,7]
[340602949,1729521041963,-464.84169597,0.000249,7]
[340602951,1729521041973,-464.84169597,0.000249,7]
[340602953,1729521041983,-464.84169597,0.000249,7]
[340602955,1729521041993,-464.84169597,0.000249,7]
[340602957,1729521042003,-464.84169597,0.000249,7]
[340602959,1729521042012,-464.84169597,0.000249,7]
[340602961,1729521042022,-464.84169597,0.000249,7]
[340602963,1729521042032,-465.34,0.000249,7]
[340602965,1729521042042,-500.0,0.0002492,3]
[340602967,1729521042051,-299.57964,0.00024929,3]
[340602969,1729521042062,-500.0,0.0002493,3]
[340602972,1729521042072,-500.0,0.0002493,3]
[340602974,1729521042082,-500.0,0.0002493,3]
[340602976,1729521042092,-522.79243652,0.00024958,2]
[340602978,1729521042104,-150.0,0.00024961,2]
[340602980,1729521042113,-500.0,0.00024973,2]
[340602982,1729521042122,-511.20452201,0.00024973,2]
[340602984,1729521042132,-755.0,0.0002498,2]
[340602986,1729521042141,-500.0,0.00024989,3]
[340602988,1729521042151,-500.0,0.00024989,3]
[340602990,1729521042160,-151.47,0.0002499,2]
[340602992,1729521042170,-151.47,0.0002499,2]
[340602994,1729521042180,-151.47,0.0002499,2]
[340602996,1729521042190,-151.47,0.0002499,2]
[340602998,1729521042200,-1068.82998554,0.00024999,10]
[340603000,1729521042210,-1068.82998554,0.00024999,10]
[340603003,1729521042221,-1068.82998553,0.00024999,10]
[340603005,1729521042232,-1068.82998554,0.00024999,10]
[340603007,1729521042241,-1068.82998554,0.00024999,10]
[340603009,1729521042252,-739.6676,0.00024999,2]
[340603011,1729521042262,-2110.0,0.00024999,2]
[340603013,1729521042272,-2000.0,0.00024999,2]
[340603015,1729521042282,-500.0,0.00024999,3]
[340603017,1729521042291,-500.0,0.00024999,3]
[340603019,1729521042300,-495.7964,0.00024999,3]
[340603021,1729521042312,-1068.82998554,0.00024999,10]
[340603023,1729521042322,-1068.82998554,0.00024999,10]
[340603025,1729521042331,-500.0,0.00024999,3]
[340603027,1729521042341,-500.0,0.00024999,3]
[340603029,1729521042350,-500.0,0.00024999,3]
[340603031,1729521042360,-500.0,0.00024999,3]
[340603034,1729521042370,-500.0,0.00024999,3]
[340603036,1729521042379,-500.0,0.00024999,3]
[340603038,1729521042389,-525.92921001,0.00024999,3]
[340603040,1729521042398,-2000.0,0.00024999,2]
[340603042,1729521042408,-375.0,0.00024999,2]
[340603044,1729521042422,-50000.0,0.00025,4]
[340603046,1729521042432,-50000.0,0.00025,5]
[340603048,1729521042441,-50000.0,0.00025,6]
[340603050,1729521042451,-40000.0,0.00025,7]
[340603052,1729521042460,-425.19239924,0.00025,7]
[340603054,1729521042470,-5216592.66058702,0.00025,2]
[340603057,1729521042488,-426.82920656,0.00025,2]
[340603059,1729521042499,-771.144,0.00025,2]
[340603071,1729521042590,-837.36443718,0.00025,2]
[340603075,1729521042602,-2397.9218227,0.00025,2]
[340603077,1729521042613,-764.98773916,0.00025,2]
[340603079,1729521042625,-526.39246623,0.00025,2]
[340603102,1729521042825,-22761.20908656,0.00025,2]
[340603104,1729521042837,-731.25595439,0.00025,2]
[340603117,1729521042949,-4498.63602248,0.00025,2]
[340603119,1729521042961,-17757.73552861,0.00025,2]
[340603121,1729521042973,-314.55550021,0.00025,2]
[340603124,1729521042985,-344.48425257,0.00025,2]
[340603126,1729521042997,-488.69800048,0.00025,2]
[340603135,1729521043072,-327.32863549,0.00025,2]
[340603137,1729521043084,-566.02672528,0.00025,2]
[340603394,1729521045757,-2553.75347727,0.000109,2]
[340603396,1729521045766,-816.841,0.00019048,2]
[340603398,1729521045777,-3377.50552273,0.000249,2]
[340603400,1729521045789,-115.82295908,0.000249,2]
[340603402,1729521045800,-15285.16424092,0.00025,2]
[340603411,1729521045880,-855.65800931,0.00025,2]
[340603415,1729521045910,-3212.81595253,0.00025,2]
[340603429,1729521046045,-2083.05726975,0.00025,2]
[340603432,1729521046057,-1012.490542,0.00025,2]
[340603792,1729521443820,2000.0,0.00025999,60]
[340603841,1729522231974,-169.95,0.00010959,2]
[340603843,1729522231984,-131.44871008,0.00021839,2]
[340603859,1729522232140,-480.27128992,0.00021839,2]
[340603861,1729522232150,-375.0,0.00021917,2]
[340603863,1729522232161,-178.52,0.0002321,2]
[340603864,1729522232171,-313.06871008,0.000235,3]
[340603865,1729522232184,-1433.56856159,0.000235,3]
[340603866,1729522232205,-121.36272833,0.000235,3]
[340603867,1729522232217,-250.0,0.00023654,2]
[340603868,1729522232227,-360.0,0.0002367,2]
[340603869,1729522232238,-250.0,0.00023692,2]
[340603870,1729522232249,-250.0,0.00023694,2]
[340603871,1729522232259,-9266.78,0.00023705,2]
[340603872,1729522232271,-640.0,0.00023824,2]
[340603873,1729522232281,-150.0,0.00023863,2]
[340603875,1729522232292,-151.81,0.00023951,2]
[340603877,1729522232302,-611.72,0.00024103,2]
[340603880,1729522232313,-1062.9589188,0.000245,2]
[340603881,1729522232323,-250.0,0.000245,30]
[340603884,1729522232334,-252.68994137,0.000245,30]
[340603886,1729522232344,-150.0,0.000245,2]
[340603888,1729522232355,-150.0,0.00024656,2]
[340603889,1729522232364,-500.0,0.00024657,3]
[340603892,1729522232374,-375.0314737,0.00024657,3]
[340603894,1729522232385,-500.0,0.00024657,3]
[340603896,1729522232395,-500.0,0.00024657,3]
[340603898,1729522232406,-500.0,0.00024657,3]
[340603899,1729522232417,-500.0,0.00024657,3]
[340603901,1729522232427,-500.0,0.00024657,3]
[340603902,1729522232437,-159.90524265,0.00024657,3]
[340603903,1729522232447,-500.0,0.00024657,3]
[340603904,1729522232458,-500.0,0.00024657,3]
[340603905,1729522232469,-500.0,0.00024657,3]
[340603906,1729522232480,-500.0,0.00024657,3]
[340603907,1729522232491,-500.0,0.00024657,3]
[340603908,1729522232502,-583.16175199,0.00024657,3]
[340603909,1729522232512,-750.0,0.00024657,2]
[340603910,1729522232522,-305.90624065,0.00024657,3]
[340603911,1729522232533,-978.35,0.00024657,3]
[340603912,1729522232543,-978.35,0.00024657,3]
[340603913,1729522232554,-978.35,0.00024657,3]
[340603914,1729522232564,-978.35,0.00024657,3]
[340603915,1729522232575,-978.35,0.00024657,3]
[340603916,1729522232585,-978.35,0.00024657,3]
[340603917,1729522232597,-978.35,0.00024657,3]
[340603918,1729522232608,-978.35,0.00024657,3]
[340603919,1729522232620,-978.35,0.00024657,3]
[340603920,1729522232630,-997.6,0.000247,2]
[340603921,1729522232640,-158.9,0.0002471,2]
[340603922,1729522232651,-500.0,0.0002471,2]
[340603923,1729522232662,-229.33483146,0.0002471,2]
[340603924,1729522232672,-500.0,0.0002471,2]
[340603925,1729522232682,-500.0,0.0002471,2]
[340603926,1729522232693,-500.0,0.0002471,2]
[340603927,1729522232703,-178.2785,0.000248,2]
[340603928,1729522232713,-1057.7782,0.000248,2]
[340603929,1729522232724,-261.9636,0.000248,2]
[340603930,1729522232734,-1312.1,0.0002481,8]
[340603931,1729522232744,-500.0,0.00024819,3]
[340603932,1729522232755,-978.35,0.00024819,3]
[340603933,1729522232765,-978.35,0.00024819,3]
[340603934,1729522232775,-873.74,0.00024877,30]
[340603935,1729522232785,-8148.32571156,0.0002489,2]
[340603941,1729522239156,-3623.11140888,0.0002489,2]
[340603993,1729522240198,-10644.28807956,0.0002489,2]
[340603995,1729522240208,-830.5143,0.0002489,2]
[340603997,1729522240218,-1000.0,0.0002489,2]
[340603999,1729522240228,-2500.0,0.0002489,2]
[340604001,1729522240237,-221.96023647,0.00024898,2]
[340604003,1729522240247,-978.35,0.00024899,3]
[340604005,1729522240258,-3000.0,0.000249,2]
[340604007,1729522240268,-5876.3556,0.000249,2]
[340604009,1729522240278,-26143.2862,0.000249,2]
[340604011,1729522240288,-864.53802549,0.000249,14]
[340604013,1729522240298,-500.0,0.000249,2]
[340604015,1729522240308,-500.0,0.000249,2]
[340604017,1729522240318,-500.0,0.000249,2]
[340604019,1729522240328,-500.0,0.000249,2]
[340604021,1729522240338,-500.0,0.000249,2]
[340604023,1729522240348,-500.0,0.000249,2]
[340604025,1729522240360,-1000.0,0.000249,2]
[340604027,1729522240369,-7500.0,0.000249,2]
[340604029,1729522240380,-7480.38243281,0.000249,2]
[340604031,1729522240390,-1986.68424304,0.00024918,4]
[340604033,1729522240400,-172.27117456,0.00024973,2]
[340604035,1729522240410,-978.35,0.0002498,3]
[340604037,1729522240420,-4619.02488572,0.0002498,5]
[340604039,1729522240429,-500.0,0.00024984,2]
[340604041,1729522240438,-663.17823161,0.00024984,2]
[340604043,1729522240448,-500.0,0.00024984,2]
[340604045,1729522240459,-500.0,0.00024984,2]
[340604047,1729522240469,-20785.6119857,0.00024988,5]
[340604049,1729522240478,-13857.0746572,0.00024989,5]
[340604051,1729522240488,-833.08,0.00024989,3]
[340604053,1729522240498,-500.0,0.00024989,2]
[340604055,1729522240508,-500.0,0.00024989,2]
[340604057,1729522240517,-500.0,0.00024989,2]
[340604059,1729522240527,-500.0,0.00024989,2]
[340604061,1729522240541,-411.14739769,0.00024989,2]
[340604063,1729522240551,-444.69186588,0.00024989,2]
[340604065,1729522240560,-158.50161594,0.00024989,3]
[340604067,1729522240570,-169.43107475,0.00024989,3]
[340604069,1729522240580,-158.92,0.0002499,30]
[340604071,1729522240590,-43880.7364143,0.0002499,5]
[340604073,1729522240600,-161545.435224,0.0002499,5]
[340604075,1729522240611,-151.49,0.0002499,2]
[340604077,1729522240620,-151.49,0.0002499,2]
[340604078,1729522240630,-151.49,0.0002499,2]
[340604080,1729522240640,-154.67394876,0.0002499,2]
[340604082,1729522240649,-4554.3072475,0.00024998,2]
[340604084,1729522240659,-39779.3886733,0.00024998,2]
[340604086,1729522240668,-10794.7747113,0.00024998,2]
[340604088,1729522240678,-500.0,0.00024999,2]
[340604090,1729522240687,-164.52008215,0.00024999,2]
[340604092,1729522240698,-833.08,0.00024999,3]
[340604094,1729522240708,-833.08,0.00024999,3]
[340604096,1729522240719,-833.08,0.00024999,3]
[340604098,1729522240729,-833.08,0.00024999,3]
[340604100,1729522240739,-833.08,0.00024999,3]
[340604102,1729522240749,-833.08,0.00024999,3]
[340604104,1729522240758,-833.08,0.00024999,3]
[340604106,1729522240769,-833.08,0.00024999,3]
[340604108,1729522240779,-833.08,0.00024999,3]
[340604110,1729522240789,-833.08,0.00024999,3]
[340604112,1729522240798,-833.08,0.00024999,3]
[340604114,1729522240808,-833.08,0.00024999,3]
[340604116,1729522240818,-833.08,0.00024999,3]
[340604118,1729522240827,-833.08,0.00024999,3]
[340604120,1729522240837,-833.08,0.00024999,3]
[340604122,1729522240847,-833.08,0.00024999,3]
[340604124,1729522240859,-833.08,0.00024999,3]
[340604126,1729522240868,-833.08,0.00024999,3]
[340604128,1729522240878,-833.08,0.00024999,3]
[340604130,1729522240888,-833.08,0.00024999,3]
[340604132,1729522240898,-833.08,0.00024999,3]
[340604134,1729522240909,-833.08,0.00024999,3]
[340604136,1729522240919,-833.146,0.00024999,3]
[340604138,1729522240933,-978.35,0.00024999,3]
[340604140,1729522240943,-978.35,0.00024999,3]
[340604142,1729522240953,-978.35,0.00024999,3]
[340604144,1729522240963,-978.35,0.00024999,3]
[340604146,1729522240974,-978.35,0.00024999,3]
[340604148,1729522240983,-978.35,0.00024999,3]
[340604150,1729522240995,-978.35,0.00024999,3]
[340604152,1729522241004,-978.35,0.00024999,3]
[340604155,1729522241015,-978.35,0.00024999,3]
[340604157,1729522241026,-978.35,0.00024999,3]
[340604159,1729522241035,-978.5826988,0.00024999,3]
[340604161,1729522241045,-2110.0,0.00024999,2]
[340604163,1729522241055,-734.0,0.00025,2]
[340604165,1729522241065,-212.59619963,0.00025,7]
[340604167,1729522241075,-667.02941549,0.00025,18]
[340604168,1729522241084,-5851022.52261476,0.00025,2]
[340604171,1729522241100,-1335.29980942,0.00025,2]
[340604174,1729522241122,-721.8755,0.00025,2]
[340604219,1729522244285,-2035821.9494571,0.00025,2]
[340604220,1729522244485,-288.04548034,0.00025,2]
[340604221,1729522244535,-150.0,0.00020448,2]
[340604222,1729522244546,-6582.882,0.00025,2]
[340604224,1729522244602,-6329.59360453,0.00025,2]
[340604226,1729522244617,-6702.5155119,0.00025,2]
[340604262,1729522245964,-150.0,0.00023448,2]
[340604263,1729522245973,-119.4,0.000248,2]
[340604264,1729522245985,-2700.22968,0.000248,2]
[340604265,1729522246003,-277.74998939,0.000248,2]
[340604266,1729522246047,-4200.47503061,0.000248,2]
[340604267,1729522246056,-2533.05296939,0.00025,2]
[340604268,1729522246090,-354.11893621,0.00025,2]
[340604269,1729522246242,-6742.89,0.00025,2]
[340604385,1729523432183,-156.39,0.00010959,2]
[340604386,1729523432194,-513.8867049,0.00020448,2]
[340604387,1729523432259,-28.2162951,0.00020448,2]
[340604388,1729523432272,-418.16392809,0.00022,2]
[340604389,1729523432342,-132.37607191,0.00022,2]
[340604390,1729523432352,-386.381532,0.00023681,2]
[340604391,1729523432363,-634.0,0.000238,2]
[340604392,1729523432373,-250.0,0.00023828,2]
[340604393,1729523432384,-250.0,0.00023828,2]
[340604394,1729523432394,-151.81,0.00023873,2]
[340604395,1729523432404,-1000.0,0.00024004,2]
[340604396,1729523432414,-250.0,0.00024004,2]
[340604397,1729523432424,-168.04,0.00024006,2]
[340604398,1729523432434,-550.54,0.00024264,2]
[340604399,1729523432444,-12391.58,0.000244,6]
[340604400,1729523432454,-0.0647184,0.000247,2]
[340604415,1729523438791,-1001.4552816,0.000247,2]
[340604416,1729523438802,-837.68,0.00024877,30]
[340604417,1729523438812,-1219.1239,0.00024898,2]
[340604418,1729523438823,-2934.4413184,0.000249,2]
[340604419,1729523438835,-163.0132816,0.000249,2]
[340604420,1729523438845,-1500.0,0.000249,2]
[340604421,1729523438855,-299.99999901,0.000249,2]
[340604422,1729523438865,-204.06249408,0.0002498,2]
[340604423,1729523438875,-500.0,0.00024989,3]
[340604424,1729523438884,-337.11,0.00024989,3]
[340604425,1729523438894,-81.24286797,0.00024989,3]
[340604426,1729523438906,-418.75713203,0.00024989,3]
[340604427,1729523438915,-68.42831013,0.00024989,3]
[340604464,1729523440405,-650.23168987,0.00024989,3]
[340604467,1729523440416,-522.4044587,0.00024989,3]
[340604469,1729523440429,-1049.68,0.00024989,8]
[340604471,1729523440439,-500.0,0.00024989,3]
[340604473,1729523440449,-500.0,0.00024989,3]
[340604475,1729523440459,-155.21444307,0.00024989,3]
[340604477,1729523440471,-344.78555693,0.00024989,3]
[340604479,1729523440481,-852.13856395,0.0002499,5]
[340604481,1729523440492,-35409.89149545,0.0002499,5]
[340604484,1729523440511,-67233.8360246,0.0002499,5]
[340604506,1729523443337,-120714.32160195,0.0002499,5]
[340604507,1729523443347,-500.0,0.00024997,3]
[340604508,1729523443356,-500.0,0.00024998,3]
[340604509,1729523443366,-26870.1798002,0.00024998,2]
[340604510,1729523443377,-156.7941553,0.00024999,2]
[340604511,1729523443387,-449.3436943,0.00024999,3]
[340604512,1729523443397,-500.0,0.00024999,3]
[340604513,1729523443408,-500.0,0.00024999,3]
[340604514,1729523443418,-500.0,0.00024999,3]
[340604515,1729523443429,-500.0,0.00024999,3]
[340604516,1729523443439,-500.0,0.00024999,3]
[340604517,1729523443450,-500.0,0.00024999,3]
[340604518,1729523443460,-500.0,0.00024999,3]
[340604519,1729523443470,-500.0,0.00024999,3]
[340604520,1729523443480,-500.0,0.00024999,3]
[340604521,1729523443490,-500.0,0.00024999,3]
[340604522,1729523443500,-500.0,0.00024999,3]
[340604523,1729523443511,-500.0,0.00024999,3]
[340604524,1729523443521,-630.24,0.00024999,3]
[340604525,1729523443531,-718.66,0.00024999,3]
[340604526,1729523443542,-718.66,0.00024999,3]
[340604527,1729523443552,-718.66,0.00024999,3]
[340604528,1729523443561,-718.66,0.00024999,3]
[340604529,1729523443571,-718.66,0.00024999,3]
[340604530,1729523443581,-718.66,0.00024999,3]
[340604531,1729523443591,-718.66,0.00024999,3]
[340604532,1729523443605,-718.66,0.00024999,3]
[340604533,1729523443614,-718.66,0.00024999,3]
[340604534,1729523443624,-718.66,0.00024999,3]
[340604535,1729523443633,-718.66,0.00024999,3]
[340604536,1729523443645,-718.66,0.00024999,3]
[340604537,1729523443654,-718.66,0.00024999,3]
[340604538,1729523443663,-718.66,0.00024999,3]
[340604539,1729523443675,-718.66,0.00024999,3]